lending/lending_fUSD_20240610
["ID","MTS","AMOUNT","RATE_DAILY","PERIOD"]
[328945450,1718022643875,-701.78153052,0.000289,7]
[328945451,1718022643888,-1779.675,0.000289,7]
[328945452,1718022643917,-1706.48451016,0.000289,7]
[328945453,1718022643929,-11759.19608677,0.000289,7]
[328945454,1718022643943,-98219.71447576,0.000289,7]
[328945455,1718022643961,-27196.92840719,0.000289,7]
[328945456,1718022643974,-2984.68284117,0.000289,7]
[328945457,1718022643988,-1449.10455235,0.000289,7]
[328945458,1718022644003,-2980.51635099,0.000289,7]
[328945459,1718022644119,-665.84359141,0.000289,7]
[328945460,1718022644132,-10970.52681283,0.000289,7]
[328945461,1718022644144,-1553.34239474,0.000289,7]
[328945472,1718022646325,-226.69645122,0.00021674,2]
[328945473,1718022646335,-29.25958052,0.00027536,2]
[328945474,1718022646620,-1198.73197833,0.00027536,2]
[328945475,1718022646632,-602.00844115,0.00027536,2]
[328945476,1718022646643,-2728.0163992,0.000289,7]
[328945477,1718022646655,-41961.50295327,0.000289,7]
[328945478,1718022646667,-437405.47684609,0.000289,7]
[328945479,1718022646861,-1057.45,0.000289,7]
[328945480,1718022646970,-864.61064937,0.00017259,2]
[328945481,1718022646981,-1065.0,0.00027536,2]
[328945482,1718022646990,-219.55397394,0.000289,7]
[328945483,1718022647002,-45801.40074428,0.000289,7]
[328945484,1718022647143,-12004.12581564,0.000289,7]
[328945485,1718022647243,-449737.99048026,0.000289,7]
[328945486,1718022647264,-4832.5,0.000289,7]
[328945487,1718022647275,-8913.75080272,0.000289,7]
[328945488,1718022647292,-7124.4,0.00028899,2]
[328945506,1718022845119,4000.0,0.000118,2]
[328945507,1718022845144,4000.0,0.000118,2]
[328945508,1718022845168,4000.0,0.000118,2]
[328945509,1718022845192,3521.00526357,0.000118,2]
[328945510,1718022852014,259.1,0.00011,2]
[328945511,1718022871564,219.89473643,6.94e-05,2]
[328945512,1718022871591,3722.41973826,6.94e-05,2]
[328945514,1718022883012,277.58026174,0.00011,2]
[328945515,1718022883040,4000.0,0.00011,2]
[328945516,1718022883066,4000.0,0.00011,2]
[328945517,1718022883092,4000.0,0.00011,2]
[328945518,1718022883118,4000.0,0.00011,2]
[328945519,1718022883145,3501.89399577,0.00011,2]
[328945520,1718022883195,155.0,0.00011,2]
[328945522,1718022895276,155.54360917,0.00011,2]
[328945523,1718022903001,187.56239506,0.00011,2]
[328945524,1718022903028,4000.0,0.00011,2]
[328945525,1718022903052,4000.0,0.00011,2]
[328945526,1718022903077,710.95219379,0.00011,2]
[328945527,1718023024544,150.5,0.0001969,15]
[328945534,1718023630137,-942.35655589,0.00013689,2]
[328945535,1718023630160,-688.78661675,0.0001369,2]
[328945536,1718023630185,-10977.35791684,0.00013691,2]
[328945537,1718023630208,-195.79238693,0.00013692,2]
[328945538,1718023630234,-2350.65016854,0.00013692,2]
[328945539,1718023630259,-238.21449077,0.00013693,2]
[328945540,1718023630287,-715.81385658,0.00013693,2]
[328945541,1718023630312,-1134.66243997,0.00013694,2]
[328945542,1718023644120,-156.52953772,0.00013694,2]
[328945543,1718023649086,-5296.29630615,0.00013694,2]
[328945560,1718023759126,-1093.56482797,0.00013693,2]
[328945561,1718023759152,-956.23426114,0.00013694,2]
[328945562,1718023759179,-150.0,0.00013699,2]
[328945563,1718023759204,-716.56,0.00013715,2]
[328945564,1718023759230,-267.0597,0.000139,2]
[328945565,1718023759255,-8819.89288,0.000139,2]
[328945566,1718023759280,-6678.55617834,0.000139,2]
[328945567,1718023759306,-150.0,0.00013989,2]
[328945568,1718023760693,-264.88853787,0.0001399,2]
[328945569,1718023760724,-151.89,0.0001399,2]
[328945570,1718023760752,-151.89,0.0001399,2]
[328945571,1718023760780,-151.89,0.0001399,2]
[328945572,1718023760807,-7323.15413047,0.0001399,2]
[328945573,1718023760833,-365.45085217,0.00013998,2]
[328945574,1718023760860,-714.70217853,0.00013998,2]
[328945575,1718023760888,-582.25571122,0.00013998,2]
[328945576,1718023760913,-947.00231839,0.00013998,2]
[328945577,1718023760941,-207.80254149,0.00013998,2]
[328945578,1718023760965,-1783.72968718,0.00013998,2]
[328945579,1718023760990,-237.45364605,0.00013998,2]
[328945580,1718023761014,-662.22180085,0.00013999,2]
[328945581,1718023761038,-463.69165335,0.00013999,2]
[328945582,1718023761066,-3844.55740887,0.00014,2]
[328945583,1718023767545,-213160.49900741,0.00014,2]
[328945584,1718023768134,-1806.44529912,0.00014,2]
[328945609,1718023832826,-1299.6934367,0.000139,2]
[328945610,1718023832837,-499.01029964,0.000139,2]
[328945611,1718023832847,-151.89,0.0001399,2]
[328945612,1718023832858,-507.36180508,0.00013998,2]
[328945613,1718023832873,-253.40467695,0.00013999,2]
[328945614,1718023832883,-4162.13914163,0.00013999,2]
[328945615,1718023832901,-4256.78188498,0.00013999,2]
[328945616,1718023832913,-150.0,0.00013999,2]
[328945617,1718023832923,-282093.36004873,0.00014,2]
[328945618,1718023832936,-8418.95087136,0.00014,2]
[328945619,1718023832956,-293.34092058,0.00014,2]
[328945620,1718023833030,-383028.14470482,0.00014,2]
[328945621,1718023833234,-7100.0,0.00014,2]
[328945622,1718023833246,-776.63562343,0.00014,2]
[328945623,1718023833261,-2182.01086808,0.00014,2]
[328945624,1718023833300,-454.25461509,0.00014,2]
[328945625,1718023833483,-5660.36809885,0.00014,2]
[328945629,1718023838277,-636385.84556567,0.00014,2]
[328945630,1718023838365,-7646.57086215,0.00014,2]
[328945631,1718023838774,-313.999999,0.00014,2]
[328945632,1718023838788,-1814.56851,0.00014,2]
[328945633,1718023838881,-307375.13991676,0.00014,2]
[328945634,1718023838894,-3042.51251388,0.00014,2]
[328945858,1718023841630,-1250.3115624,0.00014,2]
[328945936,1718023846841,-3175.31097871,0.00014,2]
[328945937,1718023848182,-3006.54994521,0.00014,2]
[328945938,1718023848504,-1217.21187777,0.00014,2]
[328945939,1718023848748,-640.16667493,0.00014,2]
[328945940,1718023848875,-397.77122,0.00014,2]
[328945941,1718023848889,-560.52287682,0.00014,2]
[328945942,1718023849002,-719.95798759,0.00014,2]
[328945943,1718023849083,-2584.92003195,0.00014,2]
[328945944,1718023849320,-328.39001,0.00014,2]
[328945955,1718023952301,1528.78371426,0.000105,2]
[328945962,1718024071408,-190.0,0.00032636,30]
[328945963,1718024071435,-1000.0,0.00032636,60]
[328945964,1718024071463,-1000.0,0.00032636,60]
[328945965,1718024071487,-1000.0,0.00032636,30]
[328945966,1718024071512,-1000.0,0.00032636,60]
[328945967,1718024071538,-1000.0,0.00032636,30]
[328945968,1718024071563,-1000.0,0.00032636,30]
[328945969,1718024071589,-1000.0,0.00032636,30]
[328945970,1718024071614,-1000.0,0.00032636,30]
[328945971,1718024071640,-1000.0,0.00032636,30]
[328945972,1718024071666,-1000.0,0.00032636,30]
[328945973,1718024071693,-1000.0,0.00032636,30]
[328945974,1718024071723,-1000.0,0.00032636,30]
[328945975,1718024071750,-1000.0,0.00032636,30]
[328945976,1718024071776,-1000.0,0.00032636,30]
[328945977,1718024071803,-1010.13220017,0.00032636,30]
[328945978,1718024071828,-1000.0,0.00032636,30]
[328945979,1718024071852,-1000.0,0.00032636,60]
[328945980,1718024071878,-1000.0,0.00032636,60]
[328945981,1718024071904,-1000.0,0.00032636,60]
[328945982,1718024071930,-1000.0,0.00032636,30]
[328945983,1718024071961,-1000.0,0.00032636,60]
[328945984,1718024071989,-1000.0,0.00032636,60]
[328945985,1718024072015,-1000.0,0.00032636,30]
[328945986,1718024072043,-1000.0,0.00032636,30]
[328945987,1718024072069,-1000.0,0.00032636,60]
[328945988,1718024072096,-1000.0,0.00032636,60]
[328945989,1718024072121,-984.5770008,0.00032636,30]
[328945990,1718024072147,-1000.0,0.00032636,30]
[328945991,1718024072173,-1000.0,0.00032636,30]
[328945992,1718024072200,-1000.0,0.00032636,60]
[328945993,1718024072227,-1000.0,0.00032636,30]
[328945994,1718024072255,-1000.0,0.00032636,30]
[328945995,1718024072281,-1000.0,0.00032636,30]
[328945996,1718024072310,-2000.0,0.00032636,30]
[328945997,1718024072337,-2000.0,0.00032636,30]
[328945998,1718024072365,-2000.0,0.00032636,30]
[328945999,1718024072393,-2000.0,0.00032636,30]
[328946000,1718024072422,-2000.0,0.00032636,30]
[328946001,1718024072451,-1000.0,0.00032636,60]
[328946002,1718024072478,-1000.0,0.00032636,60]
[328946003,1718024072506,-1000.0,0.00032636,30]
[328946004,1718024072533,-1000.0,0.00032636,30]
[328946005,1718024072561,-1000.0,0.00032636,30]
[328946006,1718024072589,-1000.0,0.00032636,30]
[328946007,1718024072617,-1000.0,0.00032636,120]
[328946008,1718024072645,-1000.0,0.00032636,30]
[328946009,1718024072673,-691.0,0.00032636,30]
[328946010,1718024072703,-1000.0,0.00032636,30]
[328946011,1718024072731,-1000.0,0.00032636,30]
[328946012,1718024072759,-1000.0,0.00032636,60]
[328946013,1718024072787,-1000.0,0.00032636,120]
[328946014,1718024072816,-1000.0,0.00032636,120]
[328946015,1718024072844,-1000.0,0.00032636,120]
[328946016,1718024072873,-1000.0,0.00032636,60]
[328946017,1718024072901,-1000.0,0.00032636,30]
[328946018,1718024072928,-1000.0,0.00032636,60]
[328946019,1718024072955,-1000.0,0.00032636,30]
[328946020,1718024072982,-1000.0,0.00032636,60]
[328946021,1718024073011,-388.58494897,0.00032636,60]
[328946022,1718024073041,-1000.0,0.00032636,120]
[328946023,1718024073068,-1000.0,0.00032636,30]
[328946024,1718024073095,-1000.0,0.00032636,30]
[328946025,1718024073122,-1000.0,0.00032636,30]
[328946026,1718024073149,-1000.0,0.00032636,30]
[328946027,1718024073176,-1000.0,0.00032636,30]
[328946028,1718024073203,-1000.0,0.00032636,30]
[328946029,1718024073230,-1000.0,0.00032636,30]
[328946030,1718024073257,-1071.31000655,0.00032636,30]
[328946031,1718024073285,-1000.0,0.00032636,30]
[328946032,1718024073313,-1039.46,0.00032636,120]
[328946033,1718024073340,-1000.0,0.00032636,30]
[328946034,1718024073368,-1000.0,0.00032636,30]
[328946035,1718024073396,-1000.0,0.00032636,30]
[328946036,1718024073587,-858.00875639,0.00032636,30]
[328946037,1718024073617,-1000.0,0.00032636,30]
[328946038,1718024073645,-1000.0,0.00032636,30]
[328946039,1718024073674,-1000.0,0.00032636,60]
[328946040,1718024073702,-1000.0,0.00032636,30]
[328946041,1718024073730,-1071.08593259,0.00032636,90]
[328946042,1718024073759,-222.41195619,0.00032636,30]
[328946043,1718024073787,-999.999998,0.00032636,120]
[328946044,1718024073813,-481.61315613,0.00032636,30]
[328946045,1718024073840,-359.94583535,0.00032636,30]
[328946046,1718024073867,-525.28730862,0.00032636,60]
[328946047,1718024073893,-831.94360045,0.00032636,30]
[328946048,1718024073920,-793.14298921,0.00032636,120]
[328946049,1718024073948,-696.66344424,0.00032636,30]
[328946050,1718024073974,-2268.35416373,0.00032636,30]
[328946051,1718024074002,-1306.47367602,0.00032636,30]
[328946052,1718024074031,-186.212646,0.00032636,120]
[328946053,1718024074059,-1204.84755536,0.00032636,120]
[328946054,1718024074086,-527.74208822,0.00032636,30]
[328946055,1718024074114,-367.32131596,0.00032636,30]
[328946056,1718024074142,-1010.10789837,0.00032636,120]
[328946057,1718024074170,-531.80465614,0.00032636,60]
[328946058,1718024074197,-814.88995208,0.00032636,30]
[328946059,1718024074225,-822.68422858,0.00032636,30]
[328946060,1718024074253,-657.82248614,0.00032636,30]
[328946061,1718024074281,-289.62856988,0.00032636,120]
[328946062,1718024074308,-615.48023012,0.00032636,120]
[328946063,1718024074334,-1087.64907415,0.00032636,60]
[328946064,1718024074362,-529.84450744,0.00032636,30]
[328946065,1718024074390,-196.84705813,0.00032636,30]
[328946066,1718024074415,-915.46995812,0.00032636,30]
[328946067,1718024074443,-236.42845515,0.00032636,120]
[328946068,1718024074470,-939.60691852,0.00032636,120]
[328946069,1718024074497,-332.08573611,0.00032636,30]
[328946070,1718024074524,-945.41977844,0.00032636,30]
[328946071,1718024074552,-426.39939577,0.00032636,120]
[328946072,1718024074578,-592.64856759,0.00032636,120]
[328946073,1718024074605,-1242.46734239,0.00032636,120]
[328946074,1718024074632,-551.7805846,0.00032636,120]
[328946075,1718024074659,-1049.82563258,0.00032636,120]
[328946076,1718024074685,-333.17043338,0.00032636,120]
[328946077,1718024074713,-844.17712507,0.00032636,30]
[328946078,1718024074739,-3743.29095701,0.00032636,120]
[328946079,1718024074765,-624.36391305,0.00032636,30]
[328946080,1718024074794,-185.74014228,0.00032636,120]
[328946081,1718024074821,-564.49574544,0.00032636,120]
[328946082,1718024074847,-473.1549675,0.00032636,120]
[328946083,1718024074872,-516.25307861,0.00032636,120]
[328946084,1718024074898,-374.75862877,0.00032636,120]
[328946085,1718024074925,-842.0791153,0.00032636,30]
[328946086,1718024074955,-942.76078698,0.00032636,120]
[328946087,1718024074982,-192.47822562,0.00032636,30]
[328946088,1718024075012,-3082.33535907,0.00032636,120]
[328946089,1718024075042,-300.94004193,0.00032636,120]
[328946090,1718024075070,-902.39833811,0.00032636,30]
[328946091,1718024075096,-382.71465578,0.00032636,30]
[328946092,1718024075124,-561.98850283,0.00032636,120]
[328946093,1718024075151,-603.04837072,0.00032636,120]
[328946094,1718024075178,-252.10828818,0.00032636,30]
[328946095,1718024075205,-2279.70065043,0.00032636,60]
[328946096,1718024075233,-265.04604311,0.00032636,120]
[328946097,1718024075259,-3276.56758867,0.00032636,90]
[328946098,1718024075285,-1843.87852217,0.00032636,30]
[328946099,1718024075313,-954.5001933,0.00032636,30]
[328946100,1718024075342,-2529.69330731,0.00032636,120]
[328946101,1718024075369,-493.1811806,0.00032636,120]
[328946102,1718024075396,-514.9331492,0.00032636,30]
[328946103,1718024075422,-863.14468687,0.00032636,120]
[328946104,1718024075450,-2364.42819988,0.00032636,120]
[328946105,1718024075478,-1388.11491115,0.00032636,30]
[328946106,1718024075506,-1089.92753573,0.00032636,30]
[328946107,1718024075531,-650.59102281,0.00032636,30]
[328946108,1718024075558,-285.37542446,0.00032636,30]
[328946109,1718024075585,-160.26539136,0.00032636,120]
[328946110,1718024075613,-2207.10920904,0.00032636,120]
[328946111,1718024075640,-1035.59688783,0.00032636,120]
[328946112,1718024075667,-1639.88712955,0.00032636,120]
[328946113,1718024075696,-1047.41104659,0.00032636,120]
[328946114,1718024075723,-33136.79689949,0.00032636,120]
[328946115,1718024075751,-343.8896935,0.00032636,120]
[328946116,1718024075778,-521.45900808,0.00032636,120]
[328946117,1718024075806,-1256.87027013,0.00032636,30]
[328946118,1718024075833,-353.31900973,0.00032636,30]
[328946119,1718024075861,-2000.0,0.00032636,30]
[328946120,1718024075887,-2606.11946679,0.00032636,120]
[328946121,1718024075913,-5393.84635124,0.00032636,120]
[328946122,1718024075941,-285.64387592,0.00032636,120]
[328946123,1718024075973,-500.0,0.00032636,30]
[328946124,1718024076003,-1800.0,0.00032636,120]
[328946125,1718024076032,-1530.25,0.00032636,30]
[328946126,1718024076061,-6211.62541862,0.00032636,120]
[328946127,1718024076090,-832.109637,0.00032636,30]
[328946128,1718024076115,-1159.13332761,0.00032636,120]
[328946129,1718024076144,-1111.62937138,0.00032636,30]
[328946130,1718024076172,-11026.6746324,0.00032636,120]
[328946131,1718024076198,-126348.071,0.00032636,30]
[328946132,1718024076226,-180.70632114,0.00032636,120]
[328946133,1718024076254,-447.96229487,0.00032636,30]
[328946134,1718024076283,-16156.16992797,0.00032636,60]
[328946135,1718024076309,-1110.04111193,0.00032636,120]
[328946136,1718024076335,-1000.0,0.00032636,31]
[328946137,1718024076363,-17030.82891246,0.00032636,30]
[328946138,1718024076391,-361137.35561473,0.00032636,30]
[328946139,1718024076417,-9771.79376994,0.00032636,30]
[328946140,1718024076575,-3646.00936168,0.00032636,30]
[328946141,1718024076603,-347.04189016,0.00032636,45]
[328946142,1718024076631,-10000.0,0.00032636,30]
[328946143,1718024076657,-85937.7634,0.00032636,30]
[328946144,1718024076685,-1280.60373562,0.00032636,120]
[328946145,1718024076711,-2830.57809648,0.00032636,30]
[328946146,1718024076736,-254.28870951,0.00032636,30]
[328946147,1718024076762,-432.6645723,0.00032636,120]
[328946148,1718024076787,-151.0,0.00032636,120]
[328946149,1718024076814,-2000.0,0.00032636,30]
[328946150,1718024076838,-157.0,0.00032636,120]
[328946151,1718024076862,-500.0,0.00032636,30]
[328946152,1718024076886,-840.50497358,0.00032636,30]
[328946153,1718024076909,-477.0,0.00032636,120]
[328946154,1718024076934,-1875.0,0.00032636,120]
[328946155,1718024076962,-1014.7979452,0.00032636,120]
[328946156,1718024076993,-191.0,0.00032636,30]
[328946157,1718024077017,-3358.74386312,0.00032636,120]
[328946158,1718024077045,-1900.0,0.00032636,120]
[328946159,1718024077071,-482.74768726,0.00032636,120]
[328946160,1718024077098,-1604.1065131,0.00032636,120]
[328946161,1718024077126,-1025.1,0.00032636,30]
[328946162,1718024077153,-139841.0,0.00032636,30]
[328946163,1718024077181,-100000.0,0.00032636,30]
[328946164,1718024077208,-1218.79347,0.00032636,30]
[328946165,1718024077234,-158.824703,0.00032636,30]
[328946166,1718024080426,-1869.18217285,0.00029,60]
[328946167,1718024080461,-348.96167817,0.00029,30]
[328946168,1718024080783,-4419.509581,0.000298,30]
[328946169,1718024080820,-156157.63342433,0.000299,30]
[328946170,1718024080853,-772.058025,0.000299,30]
[328946171,1718024080887,-25937.32705799,0.0002998,30]
[328946172,1718024080920,-405.54138114,0.00029998,120]
[328946173,1718024080953,-246.19436657,0.00029998,120]
[328946174,1718024080990,-900.0,0.0003,31]
[328946175,1718024081022,-272.41,0.0003,30]
[328946176,1718024081056,-253.31897792,0.0003,30]
[328946177,1718024081087,-607.06600061,0.0003,30]
[328946178,1718024081119,-1499.9,0.0003,30]
[328946179,1718024081151,-444.39884473,0.0003,80]
[328946180,1718024081182,-944.04711276,0.0003,30]
[328946181,1718024081214,-353.44891853,0.0003,90]
[328946182,1718024081246,-623.0,0.0003,120]
[328946183,1718024081278,-1187.81,0.0003,120]
[328946184,1718024081311,-500.0,0.00030136,90]
[328946185,1718024081346,-200.0,0.00030441,120]
[328946186,1718024081379,-318.914719,0.00030499,120]
[328946187,1718024081411,-4419.509581,0.000305,30]
[328946188,1718024081444,-500.0,0.000305,30]
[328946189,1718024081477,-508.76413003,0.000305,30]
[328946190,1718024081515,-885.33809,0.000308,30]
[328946191,1718024081545,-3098.683306,0.000308,30]
[328946192,1718024081577,-200.0,0.00030999,120]
[328946193,1718024081608,-900.0,0.00031,32]
[328946194,1718024081643,-150.0,0.000313,120]
[328946195,1718024081675,-150.0,0.00031307,120]
[328946196,1718024081709,-200.0,0.00031499,120]
[328946197,1718024081743,-150.0,0.00031763,120]
[328946198,1718024081776,-150.0,0.00031851,120]
[328946199,1718024081806,-222.352476,0.00031999,120]
[328946200,1718024081837,-900.0,0.00032,33]
[328946201,1718024081867,-744.06620013,0.00032,60]
[328946202,1718024081898,-1850.0,0.00032,120]
[328946203,1718024081929,-796.0,0.00032,60]
[328946204,1718024081964,-150.0,0.000322,120]
[328946205,1718024081996,-335.96,0.00032548,30]
[328946206,1718024082043,-150.0,0.00032796,120]
[328946207,1718024082070,-750.0,0.00032876,30]
[328946208,1718024082338,-750.0,0.00032876,30]
[328946209,1718024082367,-750.0,0.00032876,30]
[328946210,1718024082393,-750.0,0.00032876,30]
[328946211,1718024082423,-750.0,0.00032876,30]
[328946212,1718024082452,-750.0,0.00032876,30]
[328946213,1718024082481,-750.0,0.00032876,30]
[328946214,1718024082508,-750.0,0.00032876,30]
[328946215,1718024082536,-290.22012753,0.00032876,30]
[328946216,1718024082564,-600.0,0.00032876,110]
[328946217,1718024082593,-600.0,0.00032876,110]
[328946218,1718024082622,-309.00836342,0.00032876,110]
[328946219,1718024082652,-115305.75460535,0.000329,30]
[328946220,1718024082681,-13251.21271823,0.000329,30]
[328946221,1718024082710,-641.67240014,0.000329,30]
[328946222,1718024082739,-187.60948009,0.00033,30]
[328946223,1718024082766,-900.0,0.00033,34]
[328946224,1718024082795,-659.52038569,0.00033,120]
[328946225,1718024082824,-535.35238452,0.00033,120]
[328946226,1718024082850,-269.1191802,0.00033,90]
[328946227,1718024082877,-159.00024573,0.00033,120]
[328946228,1718024082914,-241.75,0.00033151,120]
[328946229,1718024082955,-1208.0,0.00033162,30]
[328946230,1718024082987,-150.0,0.00033255,120]
[328946231,1718024083018,-150.0,0.00033382,120]
[328946232,1718024083047,-1104.877395,0.000335,30]
[328946233,1718024083078,-150.0,0.00033768,120]
[328946234,1718024083107,-150.0,0.00033772,120]
[328946235,1718024083133,-344.10720699,0.00033811,40]
[328946236,1718024083160,-25000.0,0.00033811,40]
[328946237,1718024083187,-25000.0,0.00033811,40]
[328946238,1718024083213,-14712.3094844,0.00033811,40]
[328946239,1718024083240,-4855.02063609,0.00033811,40]
[328946240,1718024083266,-5000.0,0.00033811,40]
[328946241,1718024083293,-1587.28512282,0.00033811,40]
[328946242,1718024083320,-1288.05730163,0.00033811,40]
[328946243,1718024083349,-150.0,0.00033811,40]
[328946244,1718024083375,-400.75534014,0.00033811,40]
[328946245,1718024083401,-490.09246669,0.00033811,40]
[328946246,1718024083428,-5000.0,0.00033811,40]
[328946247,1718024083453,-4959.7128395,0.00033811,40]
[328946248,1718024083481,-25000.0,0.00033811,40]
[328946249,1718024083507,-150.0,0.00033811,40]
[328946250,1718024083534,-24850.0,0.00033811,40]
[328946251,1718024083562,-550.0,0.00034,120]
[328946252,1718024083588,-1000.0,0.00034,120]
[328946253,1718024083614,-250.6847583,0.00034,120]
[328946254,1718024083639,-528.87834061,0.00034,120]
[328946255,1718024083665,-200.0,0.0003425,120]
[328946256,1718024083694,-1189.61250598,0.00035,30]
[328946257,1718024083720,-1918.7997997,0.00035,30]
[328946258,1718024083746,-1280.67172839,0.00035,30]
[328946259,1718024083772,-900.0,0.00035,36]
[328946260,1718024083798,-152.18285184,0.00035,120]
[328946261,1718024083823,-1190843.46736329,0.00035,30]
[328946262,1718024083846,-200.34041644,0.00035,30]
[328946263,1718024083873,-1513.04809057,0.00035,30]
[328946264,1718024083898,-450.0,0.0003502,30]
[328946265,1718024083929,-1000.0,0.00035726,30]
[328946266,1718024083957,-1000.0,0.0003589,30]
[328946267,1718024083982,-484.19427303,0.00036,120]
[328946268,1718024084011,-1000.0,0.00036055,30]
[328946269,1718024084038,-1000.0,0.00036219,30]
[328946270,1718024084064,-1000.0,0.00036384,30]
[328946271,1718024084090,-1000.0,0.00036548,30]
[328946272,1718024084115,-450.0,0.00036673,30]
[328946273,1718024084141,-1000.0,0.00036712,30]
[328946274,1718024084165,-24497.72618155,0.000368,30]
[328946275,1718024084191,-1000.0,0.00036877,30]
[328946276,1718024084216,-5094.38643337,0.000369,30]
[328946277,1718024084241,-1000.0,0.00037041,30]
[328946278,1718024084268,-157.54,0.0003715,120]
[328946279,1718024084293,-1000.0,0.00037205,30]
[328946280,1718024084318,-1000.0,0.0003737,30]
[328946281,1718024084346,-335.96,0.00037529,30]
[328946282,1718024084371,-1000.0,0.00037534,30]
[328946283,1718024084399,-1000.0,0.00037699,30]
[328946284,1718024084425,-1000.0,0.00037863,30]
[328946285,1718024084449,-4025.0,0.00038,30]
[328946286,1718024084476,-10712.90114576,0.00038,30]
[328946287,1718024084504,-85116.26366246,0.00038,30]
[328946288,1718024084531,-371.44309103,0.00038,30]
[328946289,1718024084559,-600.0,0.00038,120]
[328946290,1718024084586,-2000.0,0.00038,30]
[328946291,1718024084612,-791.83922838,0.00038,30]
[328946292,1718024084638,-1000.0,0.00038027,30]
[328946293,1718024084664,-1000.0,0.00038192,30]
[328946294,1718024084691,-450.0,0.00038327,30]
[328946295,1718024084719,-1245.67840281,0.00038356,30]
[328946296,1718024084745,-1637.84572089,0.000384,33]
[328946297,1718024084771,-156.53611412,0.000385,30]
[328946298,1718024084796,-2651.06253611,0.00038748,31]
[328946299,1718024084820,-1290.2,0.000388,60]
[328946300,1718024084845,-19519.11105362,0.000388,45]
[328946301,1718024084872,-20000.0,0.000389,30]
[328946302,1718024084898,-1269.82096063,0.000389,30]
[328946303,1718024084923,-103792.9716132,0.000389,30]
[328946304,1718024092692,-141127.84183565,0.000389,30]
[328946305,1718024092721,-3000.0,0.00039,60]
[328946306,1718024092747,-742.74870563,0.00039,120]
[328946307,1718024092777,-2000.0,0.00039,30]
[328946308,1718024092803,-1001.58644295,0.00039,30]
[328946309,1718024092829,-49130.97695101,0.00039,30]
[328946310,1718024092854,-300242.22378122,0.00039,30]
[328946311,1718024092882,-54790.90291745,0.00039,30]
[328946312,1718024092910,-240.94503814,0.000395,30]
[328946313,1718024092937,-600.0,0.00039527,120]
[328946314,1718024092965,-180.67458253,0.000396,120]
[328946315,1718024092992,-10285.0,0.00039889,35]
[328946316,1718024093019,-2203.65334212,0.000399,120]
[328946317,1718024093049,-889.23300871,0.0003998,30]
[328946318,1718024093082,-50000.0,0.0004,30]
[328946319,1718024093112,-62204.44802714,0.0004,40]
[328946320,1718024093142,-500000.0,0.0004,30]
[328946321,1718024093170,-122578.0,0.0004,30]
[328946322,1718024093195,-300.0,0.0004,120]
[328946323,1718024093223,-200.0,0.0004,120]
[328946324,1718024093251,-1500.3897629,0.0004,30]
[328946325,1718024093278,-5000.0,0.0004,120]
[328946326,1718024093307,-1307.11497247,0.0004,90]
[328946327,1718024093335,-17949.67738211,0.0004,120]
[328946328,1718024093365,-10000.0,0.0004,60]
[328946329,1718024093394,-299.99999901,0.0004,120]
[328946330,1718024093423,-1037.8313041,0.0004,30]
[328946331,1718024093452,-892.61056096,0.0004,120]
[328946332,1718024093481,-418.08392126,0.0004,30]
[328946333,1718024093510,-500.0,0.0004,120]
[328946334,1718024093538,-500.0,0.0004,120]
[328946335,1718024093567,-500.0,0.0004,120]
[328946336,1718024093597,-500.0,0.0004,120]
[328946337,1718024093628,-500.0,0.0004,120]
[328946338,1718024093656,-500.0,0.0004,120]
[328946339,1718024093684,-500.0,0.0004,120]
[328946340,1718024093713,-260.39,0.0004,120]
[328946341,1718024093743,-428.66147407,0.0004,30]
[328946342,1718024093772,-280.60738948,0.0004,30]
[328946343,1718024093960,-290.4574637,0.0004,120]